[Event "*** Titled Tuesday Blitz"]
[Site "Chess.com"]
[Date "2021.03.09"]
[Round "6"]
[White "Chesswizard_2007"]
[Black "szachuspl"]
[Result "0-1"]
[WhiteElo "2678"]
[BlackElo "2521"]
[TimeControl "180+1"]
[EndTime "11:12:11 PST"]
[Termination "szachuspl won by checkmate"]

1. d4 {[%clk 0:03:00.9]} 1... Nf6 {[%clk 0:02:59.4]} 2. c4 {[%clk 0:02:57.6]}
2... e6 {[%clk 0:02:58.9]} 3. Bd2 {[%clk 0:02:55.8]} 3... c5 {[%clk 0:02:57.6]}
4. e3 {[%clk 0:02:54.5]} 4... cxd4 {[%clk 0:02:56.8]} 5. exd4 {[%clk 0:02:55.4]}
5... d5 {[%clk 0:02:56.9]} 6. Nf3 {[%clk 0:02:55.6]} 6... Nc6 {[%clk 0:02:56.5]}
7. cxd5 {[%clk 0:02:52.2]} 7... Nxd5 {[%clk 0:02:55.4]} 8. Nc3 {[%clk
0:02:52.6]} 8... Be7 {[%clk 0:02:55.1]} 9. a3 {[%clk 0:02:43.1]} 9... O-O {[%clk
0:02:53.9]} 10. Bd3 {[%clk 0:02:42.7]} 10... Bf6 {[%clk 0:02:53.5]} 11. h4
{[%clk 0:02:21.2]} 11... Nxd4 {[%clk 0:02:44.8]} 12. Bxh7+ {[%clk 0:02:11.7]}
12... Kxh7 {[%clk 0:02:37.3]} 13. Ng5+ {[%clk 0:02:10.6]} 13... Kg8 {[%clk
0:01:26.6]} 14. Qh5 {[%clk 0:02:08.6]} 14... Re8 {[%clk 0:01:24.9]} 15. Qxf7+
{[%clk 0:02:04.6]} 15... Kh8 {[%clk 0:01:24.3]} 16. Qh5+ {[%clk 0:02:05.5]}
16... Kg8 {[%clk 0:01:24]} 17. Qf7+ {[%clk 0:01:27.7]} 17... Kh8 {[%clk
0:01:23.4]} 18. Kf1 {[%clk 0:01:19.9]} 18... Nf5 {[%clk 0:01:07.9]} 19. Nxd5
{[%clk 0:01:11.1]} 19... exd5 {[%clk 0:01:04.5]} 20. Qh5+ {[%clk 0:01:10.8]}
20... Kg8 {[%clk 0:01:04]} 21. Qh7+ {[%clk 0:01:09.7]} 21... Kf8 {[%clk
0:01:03.9]} 22. Bb4+ {[%clk 0:01:10.6]} 22... Nd6 {[%clk 0:00:57.6]} 23. Bxd6+
{[%clk 0:00:55.1]} 23... Qxd6 {[%clk 0:00:54.3]} 24. Qh8+ {[%clk 0:00:55.5]}
24... Ke7 {[%clk 0:00:54.3]} 25. Re1+ {[%clk 0:00:56]} 25... Be6 {[%clk
0:00:50.3]} 26. Qh5 {[%clk 0:00:33.1]} 26... Kd7 {[%clk 0:00:43.6]} 27. Nxe6
{[%clk 0:00:24.4]} 27... Rxe6 {[%clk 0:00:43]} 28. Qf7+ {[%clk 0:00:25]} 28...
Re7 {[%clk 0:00:43]} 29. Rxe7+ {[%clk 0:00:25.6]} 29... Qxe7 {[%clk 0:00:41.5]}
30. Qxd5+ {[%clk 0:00:25.3]} 30... Kc7 {[%clk 0:00:40.8]} 31. Rh3 {[%clk
0:00:16]} 31... Rd8 {[%clk 0:00:37.8]} 32. Qc4+ {[%clk 0:00:16]} 32... Kb8
{[%clk 0:00:36.5]} 33. Re3 {[%clk 0:00:15]} 33... Qc7 {[%clk 0:00:28.5]} 34.
Qxc7+ {[%clk 0:00:14.8]} 34... Kxc7 {[%clk 0:00:28.1]} 35. h5 {[%clk 0:00:15.6]}
35... Bxb2 {[%clk 0:00:23.6]} 36. g4 {[%clk 0:00:15.7]} 36... Rd4 {[%clk
0:00:16.5]} 37. Re7+ {[%clk 0:00:11.3]} 37... Rd7 {[%clk 0:00:16]} 38. Re3
{[%clk 0:00:10.1]} 38... Bd4 {[%clk 0:00:13.6]} 39. Rf3 {[%clk 0:00:08]} 39...
b5 {[%clk 0:00:13.2]} 40. Kg2 {[%clk 0:00:08.4]} 40... a5 {[%clk 0:00:13.2]} 41.
Rf5 {[%clk 0:00:08.9]} 41... Kc6 {[%clk 0:00:12.9]} 42. g5 {[%clk 0:00:07.6]}
42... b4 {[%clk 0:00:12.8]} 43. axb4 {[%clk 0:00:02.9]} 43... axb4 {[%clk
0:00:13.7]} 44. Rf3 {[%clk 0:00:03.2]} 44... Kc5 {[%clk 0:00:13.6]} 45. Kg3
{[%clk 0:00:02.2]} 45... Kc4 {[%clk 0:00:13.7]} 46. Kg4 {[%clk 0:00:01.7]} 46...
b3 {[%clk 0:00:13.8]} 47. Rf8 {[%clk 0:00:02.6]} 47... Rb7 {[%clk 0:00:11.6]}
48. Rc8+ {[%clk 0:00:02.5]} 48... Kd3 {[%clk 0:00:10.9]} 49. Rc1 {[%clk
0:00:02.8]} 49... b2 {[%clk 0:00:11.1]} 50. Rh1 {[%clk 0:00:03.2]} 50... b1=Q
{[%clk 0:00:09.9]} 51. Rxb1 {[%clk 0:00:03.9]} 51... Rxb1 {[%clk 0:00:10]} 52.
f4 {[%clk 0:00:03.8]} 52... Ke4 {[%clk 0:00:08.3]} 53. h6 {[%clk 0:00:03.8]}
53... gxh6 {[%clk 0:00:07.9]} 54. Kh5 {[%clk 0:00:04.7]} 54... Rg1 {[%clk
0:00:08.1]} 55. Kxh6 {[%clk 0:00:03.8]} 55... Kxf4 {[%clk 0:00:08.1]} 56. g6
{[%clk 0:00:03.7]} 56... Kf5 {[%clk 0:00:08.1]} 57. Kh7 {[%clk 0:00:03.3]} 57...
Rh1+ {[%clk 0:00:07.7]} 58. Kg8 {[%clk 0:00:03.7]} 58... Rh8+ {[%clk 0:00:08]}
59. Kf7 {[%clk 0:00:03.6]} 59... Be5 {[%clk 0:00:08.1]} 60. g7 {[%clk
0:00:04.2]} 60... Bxg7 {[%clk 0:00:07.9]} 61. Kxg7 {[%clk 0:00:05.1]} 61... Rh5
{[%clk 0:00:08.1]} 62. Kf7 {[%clk 0:00:06]} 62... Rh7+ {[%clk 0:00:08]} 63. Ke8
{[%clk 0:00:05.4]} 63... Ra7 {[%clk 0:00:07.9]} 64. Kd8 {[%clk 0:00:06.3]} 64...
Ke6 {[%clk 0:00:08]} 65. Kc8 {[%clk 0:00:07.2]} 65... Rf7 {[%clk 0:00:08.2]} 66.
Kb8 {[%clk 0:00:08.1]} 66... Kd6 {[%clk 0:00:07.8]} 67. Ka8 {[%clk 0:00:09]}
67... Kc6 {[%clk 0:00:07.9]} 68. Kb8 {[%clk 0:00:09.9]} 68... Rg7 {[%clk
0:00:08]} 69. Kc8 {[%clk 0:00:10.8]} 69... Rg8# {[%clk 0:00:07.1]} 0-1

[Event "*** Titled Tuesday Blitz"]
[Site "Chess.com"]
[Date "2021.03.09"]
[Round "6"]
[White "kuba2006"]
[Black "kleopl"]
[Result "1/2-1/2"]
[WhiteElo "2342"]
[BlackElo "2472"]
[TimeControl "180+1"]
[EndTime "11:12:11 PST"]
[Termination "Game drawn - insufficient material"]

1. b3 {[%clk 0:03:00.9]} 1... c5 {[%clk 0:02:59]} 2. Bb2 {[%clk 0:03:01.8]} 2...
Nc6 {[%clk 0:02:59.2]} 3. e3 {[%clk 0:03:01.7]} 3... a6 {[%clk 0:02:58.4]} 4.
Nf3 {[%clk 0:03:01.1]} 4... d5 {[%clk 0:02:57.2]} 5. d4 {[%clk 0:02:51.4]} 5...
cxd4 {[%clk 0:02:56.4]} 6. Nxd4 {[%clk 0:02:51.2]} 6... Nf6 {[%clk 0:02:53.5]}
7. c4 {[%clk 0:02:49]} 7... Nxd4 {[%clk 0:02:45.4]} 8. Qxd4 {[%clk 0:02:43.9]}
8... Bf5 {[%clk 0:02:41.4]} 9. Nc3 {[%clk 0:02:30]} 9... dxc4 {[%clk 0:02:38]}
10. bxc4 {[%clk 0:01:59.7]} 10... e6 {[%clk 0:02:25.7]} 11. Be2 {[%clk
0:01:54.1]} 11... Qxd4 {[%clk 0:02:20.2]} 12. exd4 {[%clk 0:01:53.7]} 12... Ne4
{[%clk 0:02:20.6]} 13. Nxe4 {[%clk 0:01:48.6]} 13... Bxe4 {[%clk 0:02:20.3]} 14.
f3 {[%clk 0:01:45.5]} 14... Bb4+ {[%clk 0:02:18.7]} 15. Kf2 {[%clk 0:01:45.4]}
15... Bc6 {[%clk 0:02:18.9]} 16. Rhd1 {[%clk 0:01:40.6]} 16... O-O {[%clk
0:02:14.4]} 17. Bd3 {[%clk 0:01:37.6]} 17... Rfd8 {[%clk 0:02:10.8]} 18. Be4
{[%clk 0:01:37.4]} 18... Bxe4 {[%clk 0:02:05.4]} 19. fxe4 {[%clk 0:01:38.3]}
19... Rac8 {[%clk 0:02:05.8]} 20. Rac1 {[%clk 0:01:37.6]} 20... g6 {[%clk
0:01:58.4]} 21. c5 {[%clk 0:00:55.8]} 21... Ba5 {[%clk 0:01:47.8]} 22. d5 {[%clk
0:00:43.7]} 22... exd5 {[%clk 0:01:44.3]} 23. exd5 {[%clk 0:00:44.6]} 23... Bb4
{[%clk 0:01:42.5]} 24. Bf6 {[%clk 0:00:35.2]} 24... Rd7 {[%clk 0:01:37.7]} 25.
c6 {[%clk 0:00:26.2]} 25... bxc6 {[%clk 0:01:35.6]} 26. dxc6 {[%clk 0:00:27.1]}
26... Rxd1 {[%clk 0:00:33.5]} 27. Rxd1 {[%clk 0:00:28]} 27... Bc5+ {[%clk
0:00:34.2]} 28. Kf3 {[%clk 0:00:25.3]} 28... Bb6 {[%clk 0:00:33.6]} 29. Rc1
{[%clk 0:00:15.5]} 29... Kf8 {[%clk 0:00:27.5]} 30. Ke4 {[%clk 0:00:14.9]} 30...
Bc7 {[%clk 0:00:23.5]} 31. Kd5 {[%clk 0:00:14.3]} 31... Re8 {[%clk 0:00:22.2]}
32. Rb1 {[%clk 0:00:14.1]} 32... Rc8 {[%clk 0:00:20]} 33. Rb7 {[%clk 0:00:13.5]}
33... Ke8 {[%clk 0:00:19.8]} 34. Ra7 {[%clk 0:00:11]} 34... a5 {[%clk
0:00:18.5]} 35. Kc5 {[%clk 0:00:09.2]} 35... Bxh2 {[%clk 0:00:17]} 36. Rxa5
{[%clk 0:00:08.7]} 36... Bg1+ {[%clk 0:00:17.3]} 37. Kd5 {[%clk 0:00:08.6]}
37... Bh2 {[%clk 0:00:14]} 38. Ra7 {[%clk 0:00:08]} 38... Bc7 {[%clk 0:00:12.1]}
39. Rb7 {[%clk 0:00:08.4]} 39... h6 {[%clk 0:00:10.9]} 40. a4 {[%clk 0:00:07.9]}
40... g5 {[%clk 0:00:11.1]} 41. Kc5 {[%clk 0:00:07.2]} 41... g4 {[%clk
0:00:11.2]} 42. Kb5 {[%clk 0:00:07.1]} 42... Kf8 {[%clk 0:00:10.5]} 43. a5
{[%clk 0:00:07.1]} 43... Bxa5 {[%clk 0:00:10]} 44. Kxa5 {[%clk 0:00:06.1]} 44...
Kg8 {[%clk 0:00:10.5]} 45. c7 {[%clk 0:00:06.1]} 45... Kh7 {[%clk 0:00:10.7]}
46. Rb8 {[%clk 0:00:06.4]} 46... Rxc7 {[%clk 0:00:10.4]} 47. Kb4 {[%clk
0:00:04.5]} 47... Kg6 {[%clk 0:00:10.2]} 48. Be5 {[%clk 0:00:04.2]} 48... Re7
{[%clk 0:00:08.1]} 49. Bd6 {[%clk 0:00:03.8]} 49... Re2 {[%clk 0:00:07.2]} 50.
Kc5 {[%clk 0:00:04.3]} 50... Rxg2 {[%clk 0:00:06.7]} 51. Rg8+ {[%clk 0:00:04.8]}
51... Kf5 {[%clk 0:00:06.7]} 52. Rh8 {[%clk 0:00:04.5]} 52... Kg6 {[%clk
0:00:06.2]} 53. Rg8+ {[%clk 0:00:04.4]} 53... Kh5 {[%clk 0:00:06.6]} 54. Rf8
{[%clk 0:00:04.2]} 54... Rf2 {[%clk 0:00:06.6]} 55. Kd5 {[%clk 0:00:03.2]} 55...
f5 {[%clk 0:00:05.6]} 56. Be5 {[%clk 0:00:01.5]} 56... Kh4 {[%clk 0:00:04]} 57.
Ke6 {[%clk 0:00:02]} 57... h5 {[%clk 0:00:03.6]} 58. Rxf5 {[%clk 0:00:01.9]}
58... Rxf5 {[%clk 0:00:03]} 59. Kxf5 {[%clk 0:00:02.8]} 59... g3 {[%clk
0:00:03.1]} 60. Kf4 {[%clk 0:00:03.4]} 60... Kh3 {[%clk 0:00:02.9]} 61. Bd4
{[%clk 0:00:03.9]} 61... Kg2 {[%clk 0:00:02.7]} 62. Kg5 {[%clk 0:00:04]} 62...
Kf3 {[%clk 0:00:01.5]} 63. Kxh5 {[%clk 0:00:04]} 63... g2 {[%clk 0:00:02.4]} 64.
Bc5 {[%clk 0:00:03.7]} 64... g1=Q {[%clk 0:00:02.7]} 65. Bxg1 {[%clk 0:00:03.1]}
1/2-1/2

[Event "*** Titled Tuesday Blitz"]
[Site "Chess.com"]
[Date "2021.03.09"]
[Round "6"]
[White "Sam_ChessMood"]
[Black "mikolka1985"]
[Result "1-0"]
[WhiteElo "2885"]
[BlackElo "2688"]
[TimeControl "180+1"]
[EndTime "11:12:22 PST"]
[Termination "Sam_ChessMood won on time"]

1. Nf3 {[%clk 0:03:00.9]} 1... d5 {[%clk 0:02:58.4]} 2. d4 {[%clk 0:03:00.8]}
2... Nf6 {[%clk 0:02:57.3]} 3. c4 {[%clk 0:03:00.8]} 3... e6 {[%clk 0:02:57.4]}
4. Nc3 {[%clk 0:02:59.7]} 4... Bb4 {[%clk 0:02:55.6]} 5. cxd5 {[%clk 0:02:55.5]}
5... exd5 {[%clk 0:02:55.4]} 6. Bg5 {[%clk 0:02:51.7]} 6... h6 {[%clk
0:02:54.9]} 7. Bh4 {[%clk 0:02:50.4]} 7... O-O {[%clk 0:02:51.4]} 8. e3 {[%clk
0:02:49]} 8... Bf5 {[%clk 0:02:50.1]} 9. Ne5 {[%clk 0:02:39.2]} 9... g5 {[%clk
0:02:10.5]} 10. Bg3 {[%clk 0:02:35.5]} 10... c5 {[%clk 0:02:10.4]} 11. Bd3
{[%clk 0:02:19.3]} 11... cxd4 {[%clk 0:01:38.9]} 12. exd4 {[%clk 0:02:11.1]}
12... Ne4 {[%clk 0:01:35.1]} 13. O-O {[%clk 0:01:52.7]} 13... Nc6 {[%clk
0:01:34.6]} 14. Nxe4 {[%clk 0:00:41.8]} 14... dxe4 {[%clk 0:01:31.6]} 15. Bc4
{[%clk 0:00:42.2]} 15... Qxd4 {[%clk 0:01:08.8]} 16. Nxc6 {[%clk 0:00:41.5]}
16... Qxd1 {[%clk 0:01:07.3]} 17. Rfxd1 {[%clk 0:00:38]} 17... bxc6 {[%clk
0:01:06.6]} 18. Bd6 {[%clk 0:00:31.1]} 18... Bxd6 {[%clk 0:01:05]} 19. Rxd6
{[%clk 0:00:32]} 19... Rfd8 {[%clk 0:00:58.1]} 20. Rf6 {[%clk 0:00:29.3]} 20...
Be6 {[%clk 0:00:53.6]} 21. Bxe6 {[%clk 0:00:28.9]} 21... fxe6 {[%clk 0:00:53.5]}
22. Rxe6 {[%clk 0:00:26.3]} 22... Rd2 {[%clk 0:00:53]} 23. Rxe4 {[%clk
0:00:17.4]} 23... Rxb2 {[%clk 0:00:48.1]} 24. Re6 {[%clk 0:00:17.3]} 24... Kg7
{[%clk 0:00:47]} 25. Rxc6 {[%clk 0:00:16.8]} 25... Rd8 {[%clk 0:00:41.7]} 26.
Rc7+ {[%clk 0:00:12.4]} 26... Kg6 {[%clk 0:00:41.1]} 27. Rxa7 {[%clk 0:00:12.7]}
27... Rdd2 {[%clk 0:00:40]} 28. Rf1 {[%clk 0:00:11.6]} 28... Rxa2 {[%clk
0:00:39.5]} 29. Rxa2 {[%clk 0:00:11.9]} 29... Rxa2 {[%clk 0:00:39.3]} 30. g3
{[%clk 0:00:12.1]} 30... Rb2 {[%clk 0:00:38.6]} 31. Kg2 {[%clk 0:00:12.5]} 31...
Rb3 {[%clk 0:00:38.1]} 32. Ra1 {[%clk 0:00:12.2]} 32... Rb6 {[%clk 0:00:37.9]}
33. Ra5 {[%clk 0:00:12.1]} 33... Rc6 {[%clk 0:00:38]} 34. Rb5 {[%clk 0:00:09]}
34... Rd6 {[%clk 0:00:37.8]} 35. Rb4 {[%clk 0:00:09.1]} 35... Rc6 {[%clk
0:00:37.3]} 36. h4 {[%clk 0:00:08.9]} 36... Rd6 {[%clk 0:00:37.3]} 37. Kh3
{[%clk 0:00:07.7]} 37... Rc6 {[%clk 0:00:35.2]} 38. Rb3 {[%clk 0:00:06.7]} 38...
Rd6 {[%clk 0:00:34.5]} 39. f3 {[%clk 0:00:07.1]} 39... Rc6 {[%clk 0:00:33.9]}
40. Re3 {[%clk 0:00:07.2]} 40... Rd6 {[%clk 0:00:33.5]} 41. Kg4 {[%clk
0:00:07.1]} 41... Rd4+ {[%clk 0:00:32.4]} 42. Re4 {[%clk 0:00:03.7]} 42... h5+
{[%clk 0:00:30]} 43. Kh3 {[%clk 0:00:04.2]} 43... g4+ {[%clk 0:00:30.2]} 44. Kg2
{[%clk 0:00:04.5]} 44... Rd2+ {[%clk 0:00:30]} 45. Kf1 {[%clk 0:00:04.2]} 45...
gxf3 {[%clk 0:00:29.9]} 46. Rf4 {[%clk 0:00:04.6]} 46... Rd1+ {[%clk 0:00:20.3]}
47. Kf2 {[%clk 0:00:05]} 47... Rd2+ {[%clk 0:00:20.7]} 48. Kxf3 {[%clk
0:00:05.3]} 48... Rd3+ {[%clk 0:00:21.2]} 49. Kg2 {[%clk 0:00:05.6]} 49... Rd2+
{[%clk 0:00:21.2]} 50. Rf2 {[%clk 0:00:06]} 50... Rd3 {[%clk 0:00:21]} 51. Rf3
{[%clk 0:00:06.1]} 51... Rd2+ {[%clk 0:00:21]} 52. Kf1 {[%clk 0:00:06.5]} 52...
Rb2 {[%clk 0:00:20.5]} 53. Rf2 {[%clk 0:00:06.6]} 53... Rb3 {[%clk 0:00:20.3]}
54. Kg2 {[%clk 0:00:06.9]} 54... Rc3 {[%clk 0:00:20.7]} 55. Ra2 {[%clk
0:00:06.6]} 55... Rc6 {[%clk 0:00:20.5]} 56. Ra5 {[%clk 0:00:06.6]} 56... Rd6
{[%clk 0:00:20.4]} 57. Re5 {[%clk 0:00:06.3]} 57... Rc6 {[%clk 0:00:20.1]} 58.
Rg5+ {[%clk 0:00:06.4]} 58... Kh6 {[%clk 0:00:20]} 59. Re5 {[%clk 0:00:06.5]}
59... Rd6 {[%clk 0:00:20.2]} 60. Kf3 {[%clk 0:00:06.6]} 60... Rc6 {[%clk
0:00:20.2]} 61. Kf4 {[%clk 0:00:06.8]} 61... Rf6+ {[%clk 0:00:19.7]} 62. Rf5
{[%clk 0:00:06.9]} 62... Rc6 {[%clk 0:00:19.3]} 63. Ke5 {[%clk 0:00:06.3]} 63...
Rg6 {[%clk 0:00:18.5]} 64. Rf6 {[%clk 0:00:06.1]} 64... Kg7 {[%clk 0:00:14.8]}
65. Rxg6+ {[%clk 0:00:06.4]} 65... Kxg6 {[%clk 0:00:15]} 66. Ke6 {[%clk
0:00:06.9]} 66... Kg7 {[%clk 0:00:12.2]} 67. Kf5 {[%clk 0:00:07]} 67... Kh6
{[%clk 0:00:12.1]} 68. Kf6 {[%clk 0:00:07.4]} 1-0

[Event "*** Titled Tuesday Blitz"]
[Site "Chess.com"]
[Date "2021.03.09"]
[Round "6"]
[White "arctic_t00"]
[Black "elcandado"]
[Result "1/2-1/2"]
[WhiteElo "2540"]
[BlackElo "2661"]
[TimeControl "180+1"]
[EndTime "11:12:22 PST"]
[Termination "Game drawn - insufficient material"]

1. d4 {[%clk 0:03:00.9]} 1... Nf6 {[%clk 0:02:59.2]} 2. Nf3 {[%clk 0:03:00.7]}
2... d5 {[%clk 0:02:58.6]} 3. c4 {[%clk 0:03:00.3]} 3... e6 {[%clk 0:02:58.3]}
4. Nc3 {[%clk 0:03:00.2]} 4... dxc4 {[%clk 0:02:58.2]} 5. e3 {[%clk 0:03:00]}
5... a6 {[%clk 0:02:57.6]} 6. a4 {[%clk 0:02:59]} 6... b6 {[%clk 0:02:57.6]} 7.
Bxc4 {[%clk 0:02:59.2]} 7... Bb7 {[%clk 0:02:57.8]} 8. O-O {[%clk 0:02:59.1]}
8... Bd6 {[%clk 0:02:56.9]} 9. Re1 {[%clk 0:02:57.3]} 9... Nbd7 {[%clk
0:02:56.3]} 10. e4 {[%clk 0:02:54.7]} 10... e5 {[%clk 0:02:56.2]} 11. Bg5 {[%clk
0:02:28.2]} 11... h6 {[%clk 0:02:49.8]} 12. Bxf6 {[%clk 0:02:20.8]} 12... Qxf6
{[%clk 0:02:47.4]} 13. Nd5 {[%clk 0:02:10.8]} 13... Bxd5 {[%clk 0:02:40.2]} 14.
Bxd5 {[%clk 0:02:08.7]} 14... Rd8 {[%clk 0:02:38.5]} 15. Bc6 {[%clk 0:01:48.8]}
15... Qe7 {[%clk 0:01:11.2]} 16. dxe5 {[%clk 0:01:47.2]} 16... Bxe5 {[%clk
0:01:03.2]} 17. Nxe5 {[%clk 0:01:47]} 17... Qxe5 {[%clk 0:01:00.9]} 18. Qg4
{[%clk 0:01:47.3]} 18... h5 {[%clk 0:00:49.3]} 19. Qf5 {[%clk 0:01:44.3]} 19...
Qe6 {[%clk 0:00:31.7]} 20. Bd5 {[%clk 0:00:56.8]} 20... Qxf5 {[%clk 0:00:29.5]}
21. exf5+ {[%clk 0:00:56.7]} 21... Kf8 {[%clk 0:00:29.9]} 22. Rad1 {[%clk
0:00:49]} 22... Nf6 {[%clk 0:00:27.8]} 23. Bb7 {[%clk 0:00:41.4]} 23... Rxd1
{[%clk 0:00:23.7]} 24. Rxd1 {[%clk 0:00:42.3]} 24... Ke7 {[%clk 0:00:22.5]} 25.
Bxa6 {[%clk 0:00:42.6]} 25... Rd8 {[%clk 0:00:18.4]} 26. Rxd8 {[%clk 0:00:40.4]}
26... Kxd8 {[%clk 0:00:19.3]} 27. Bc4 {[%clk 0:00:40.8]} 27... Ke7 {[%clk
0:00:19.5]} 28. f3 {[%clk 0:00:40.8]} 28... Nd7 {[%clk 0:00:19.2]} 29. b4 {[%clk
0:00:39.1]} 29... Ne5 {[%clk 0:00:18.4]} 30. Be2 {[%clk 0:00:36.1]} 30... Kd6
{[%clk 0:00:17]} 31. a5 {[%clk 0:00:31]} 31... bxa5 {[%clk 0:00:11.5]} 32. bxa5
{[%clk 0:00:31.9]} 32... Kc5 {[%clk 0:00:11.2]} 33. Kf2 {[%clk 0:00:30.6]} 33...
Nc6 {[%clk 0:00:09.6]} 34. a6 {[%clk 0:00:30]} 34... Kb6 {[%clk 0:00:08.9]} 35.
Ke3 {[%clk 0:00:27.2]} 35... Nb4 {[%clk 0:00:09]} 36. f4 {[%clk 0:00:21.5]}
36... h4 {[%clk 0:00:06.3]} 37. f6 {[%clk 0:00:18.4]} 37... gxf6 {[%clk
0:00:04.7]} 38. Bc4 {[%clk 0:00:18.9]} 38... Nxa6 {[%clk 0:00:04.4]} 39. Bxf7
{[%clk 0:00:19.5]} 39... c5 {[%clk 0:00:04.6]} 40. Kf3 {[%clk 0:00:18.6]} 40...
Kb5 {[%clk 0:00:03]} 41. Kg4 {[%clk 0:00:18.8]} 41... c4 {[%clk 0:00:03.5]} 42.
Kxh4 {[%clk 0:00:19.1]} 42... c3 {[%clk 0:00:03.9]} 43. Bg6 {[%clk 0:00:18.9]}
43... Kc4 {[%clk 0:00:04.1]} 44. Kg4 {[%clk 0:00:17.4]} 44... Nb4 {[%clk
0:00:04.5]} 45. Bb1 {[%clk 0:00:16.3]} 45... Kb3 {[%clk 0:00:03.1]} 46. h4
{[%clk 0:00:16.6]} 46... Kb2 {[%clk 0:00:02.9]} 47. Bg6 {[%clk 0:00:16.1]} 47...
Kc1 {[%clk 0:00:03.4]} 48. h5 {[%clk 0:00:15.1]} 48... Kd2 {[%clk 0:00:03.6]}
49. Bb1 {[%clk 0:00:14.4]} 49... Kc1 {[%clk 0:00:02.7]} 50. Bf5 {[%clk
0:00:14.5]} 50... Kd2 {[%clk 0:00:03.3]} 51. h6 {[%clk 0:00:11.8]} 51... Nd3
{[%clk 0:00:03.5]} 52. h7 {[%clk 0:00:11.9]} 52... c2 {[%clk 0:00:03.7]} 53.
h8=Q {[%clk 0:00:11.8]} 53... c1=Q {[%clk 0:00:03.5]} 54. Qd8 {[%clk 0:00:10.7]}
54... Qd1+ {[%clk 0:00:02.9]} 55. Kh4 {[%clk 0:00:09.7]} 55... Qe1+ {[%clk
0:00:02.7]} 56. Kh5 {[%clk 0:00:09.5]} 56... Qe2+ {[%clk 0:00:02.6]} 57. Kg6
{[%clk 0:00:09.4]} 57... Qxg2+ {[%clk 0:00:02.1]} 58. Kxf6 {[%clk 0:00:09.4]}
58... Qc6+ {[%clk 0:00:02.1]} 59. Kg5 {[%clk 0:00:09.5]} 59... Qg2+ {[%clk
0:00:01.7]} 60. Kh6 {[%clk 0:00:09.5]} 60... Qc6+ {[%clk 0:00:02]} 61. Kg7
{[%clk 0:00:09.4]} 61... Qg2+ {[%clk 0:00:01.9]} 62. Kf7 {[%clk 0:00:08.9]}
62... Qb7+ {[%clk 0:00:02.3]} 63. Kg8 {[%clk 0:00:07.7]} 63... Qb3+ {[%clk
0:00:01.7]} 64. Kf8 {[%clk 0:00:07]} 64... Qb4+ {[%clk 0:00:01.5]} 65. Kg8
{[%clk 0:00:06.3]} 65... Qxf4 {[%clk 0:00:02.4]} 66. Qxd3+ {[%clk 0:00:05.5]}
66... Ke1 {[%clk 0:00:03]} 67. Qb1+ {[%clk 0:00:04.7]} 67... Kf2 {[%clk
0:00:03.2]} 68. Kf7 {[%clk 0:00:04.8]} 68... Kg3 {[%clk 0:00:03.3]} 69. Qg1+
{[%clk 0:00:04.3]} 69... Kf3 {[%clk 0:00:03]} 70. Qf1+ {[%clk 0:00:04.2]} 70...
Ke3 {[%clk 0:00:03.2]} 71. Qxf4+ {[%clk 0:00:05.1]} 71... Kxf4 {[%clk
0:00:02.9]} 1/2-1/2